bitfinex-derivatives/quotes_ETHF0:USTF0_20251009
["timestamp","ask_amount","ask_price","bid_price","bid_amount"]
[1760017553852,0.237,4371.0,4370.6,0.6511]
[1760017554050,3.61943,4371.1,4371.0,0.9159]
[1760017554257,0.41158,4371.6,4371.5,0.2648]
[1760017554455,0.00215543,4371.6,4371.5,0.9159]
[1760017554956,0.00215543,4371.6,4371.5,1.1529]
[1760017555152,3.2078,4372.8,4372.5,0.2648]
[1760017555353,0.022,4372.9,4372.6,0.6511]
[1760017555557,3.2078,4373.3,4372.5,0.2648]
[1760017555558,3.2078,4373.3,4373.1,0.6511]
[1760017556057,0.237,4373.8,4373.5,0.2648]
[1760017556251,0.00243795,4373.8,4373.6,0.6511]
[1760017556454,0.00243795,4373.8,4373.6,0.65385397]
[1760017556654,0.41138,4373.7,4373.6,0.65385397]
[1760017556856,3.61918,4373.7,4373.6,0.65385397]
[1760017557153,3.61918,4373.7,4373.6,0.00275397]
[1760017557453,8.61918,4373.7,4373.6,0.09441397]
[1760017557655,0.41144,4373.1,4373.0,0.2648]
[1760017558652,0.41144,4373.1,4373.0,0.26770877]
[1760017558853,0.41143,4373.2,4373.0,0.26770877]
[1760017559454,0.237,4373.3,4373.0,0.26770877]
[1760017559758,0.237,4373.3,4373.1,0.6511]
[1760017559950,0.237,4373.3,4373.0,0.26770877]
[1760017560152,0.64843,4373.3,4373.1,0.6511]
[1760017560351,0.00243795,4373.8,4373.1,0.6511]
[1760017560352,0.00243795,4373.8,4373.6,0.6511]
[1760017560755,3.3906,4374.2,4374.0,0.2648]
[1760017560954,3.2078,4375.2,4375.1,0.6511]
[1760017561557,3.857,4377.1,4376.0,0.2648]
[1760017561753,3.85967771,4377.1,4376.0,0.2648]
[1760017561959,0.6492,4377.0,4376.1,40.8]
[1760017562257,3.21047771,4377.1,4376.6,0.6511]
[1760017562448,3.21047771,4377.1,4377.0,0.9159]
[1760017562449,0.00267771,4377.1,4377.0,0.9159]
[1760017562854,0.00267771,4377.1,4377.0,0.6511]
[1760017563052,0.00267771,4377.1,4376.1,0.00278262]
[1760017563053,0.41114,4376.3,4376.1,0.00278262]
[1760017563258,3.857,4376.2,4376.1,0.00278262]
[1760017563459,3.2078,4376.2,4376.1,0.00278262]
[1760017563652,0.6492,4376.2,4376.1,0.00278262]
[1760017564252,0.6492,4375.7,4375.0,0.6511]
[1760017564460,0.6492,4375.7,4374.5,3.2078]
[1760017564461,0.41126,4375.0,4374.5,3.2078]
[1760017564655,3.2078,4375.3,4374.7,0.6511]
[1760017564960,0.41128,4374.8,4374.7,0.6511]
[1760017565154,0.41126,4375.1,4374.7,0.6511]
[1760017565356,0.41127,4375.0,4374.6,0.9159]
[1760017565550,0.41127,4375.0,4374.6,0.26681587]
[1760017565754,0.41128,4374.9,4374.6,0.26681587]
[1760017565957,3.2078,4375.3,4374.6,0.91791587]
[1760017566260,0.41122,4375.4,4374.9,0.6511]
[1760017566662,0.1828,4375.6,4375.1,0.6511]
[1760017566857,0.1828,4375.6,4375.3,0.6511]
[1760017567159,0.41123,4375.4,4375.3,0.6511]
[1760017567358,0.1828,4375.6,4375.0,44.0078]
[1760017567359,0.41125,4375.2,4375.0,44.0078]
[1760017567562,3.4448,4375.1,4374.6,0.00201587]
[1760017567768,0.41129,4374.8,4374.6,0.00201587]
[1760017568357,0.6492,4375.2,4374.6,0.00201587]
[1760017568560,3.6276,4375.6,4375.0,0.6511]
[1760017568758,3.3906,4375.6,4375.5,0.41121]
[1760017568952,0.1828,4375.6,4375.5,1.32711]
[1760017569159,3.2078,4376.7,4375.5,1.32711]
[1760017569160,3.2078,4376.7,4375.6,0.6511]
[1760017569464,0.56208,4377.0,4376.6,0.6511]
[1760017569656,0.56208,4377.0,4376.3,0.41113]
[1760017569657,0.56208,4377.0,4376.3,0.6511]
[1760017569961,0.00267771,4377.1,4376.7,3.2078]
[1760017570261,0.41374771,4377.1,4376.8,0.6511]
[1760017570471,0.00267771,4377.1,4376.8,0.6511]
[1760017570764,0.00267771,4377.1,4377.0,0.6511]
[1760017573265,0.41109,4376.8,4376.7,3.2078]
[1760017573566,0.41108,4376.9,4376.8,0.6815]
[1760017573762,0.00267771,4377.1,4376.8,0.6815]
[1760017574168,0.6583,4376.5,4376.4,40.8]
[1760017574363,0.6583,4376.3,4376.2,3.2078]
[1760017574571,0.6583,4376.3,4375.6,3.2078]
[1760017574572,0.41118,4375.8,4375.6,3.2078]
[1760017574765,0.41122,4375.5,4375.3,40.8]
[1760017575065,0.41122,4375.5,4375.4,0.6815]
[1760017575266,1.06955,4375.1,4375.0,3.2078]
[1760017575866,3.4547,4376.0,4375.0,3.8893]
[1760017575867,0.41125,4375.2,4375.0,3.8893]
[1760017576067,0.41125,4375.2,4375.1,0.6815]
[1760017576270,1.06955,4375.2,4375.0,3.2078]
[1760017576468,0.41129,4374.8,4374.7,0.6815]
[1760017576764,0.41129,4374.8,4374.6,0.00201587]
[1760017576970,0.41129,4374.8,4374.6,0.68351587]
[1760017577272,0.6583,4374.7,4374.6,0.00201587]
[1760017577971,5.6583,4374.7,4374.6,0.00201587]
[1760017578172,0.41136,4373.9,4373.8,3.2078]
[1760017578361,1.30566,4373.9,4373.8,3.2078]
[1760017578561,0.64736,4373.9,4373.8,3.8893]
[1760017579165,0.65008486,4373.9,4373.8,3.8921237]
[1760017579363,1.30838486,4373.9,4373.8,3.2106237]
[1760017579564,1.30838486,4373.9,4372.0,0.2579]
[1760017579565,0.89702486,4373.9,4372.7,3.2078]
[1760017579765,0.89702486,4373.9,4372.6,0.6815]
[1760017579766,3.8661,4373.4,4372.1,3.8893]
[1760017580070,0.41151,4372.3,4372.2,40.8]
[1760017580267,0.41151,4372.3,4372.2,0.6815]
[1760017580571,0.6583,4372.2,4372.1,3.2078]
[1760017580962,0.6583,4372.2,4372.1,3.21014202]
[1760017581369,0.8943,4372.2,4372.1,3.21014202]
[1760017581971,0.8943,4372.2,4372.1,0.00234202]
[1760017582567,0.8943,4372.2,4371.0,0.2579]
[1760017582568,0.41163,4371.1,4371.0,3.2078]
[1760017582761,1.06993,4371.1,4371.0,3.2078]
[1760017582966,1.06993,4371.1,4370.5,3.2078]
[1760017583170,0.41167,4370.6,4370.5,3.2078]
[1760017583473,0.64767,4370.6,4370.5,3.2078]
[1760017583662,0.65063021,4370.6,4370.5,3.2098247]
[1760017584067,6.30893021,4370.6,4370.5,0.0020247]
[1760017584370,9.28433097,4370.6,4370.5,0.0020247]
[1760017584767,0.00296021,4370.6,4370.5,0.0020247]
[1760017584964,0.23896021,4370.6,4370.5,0.6835247]
[1760017585368,0.23896021,4370.6,4370.5,0.0020247]
[1760017586272,0.00296021,4370.6,4370.5,0.6835247]
[1760017586471,0.236,4371.4,4370.6,0.6815]
[1760017586670,0.6476,4371.4,4371.2,3.2078]
[1760017586972,0.183,4371.3,4371.2,3.2078]
[1760017587175,0.183,4371.3,4371.2,3.8893]
[1760017587570,0.18590414,4371.3,4371.2,3.8893]
[1760017587770,0.18590414,4371.3,4371.2,44.0078]
[1760017587771,0.59751414,4371.3,4371.2,44.0078]
[1760017587972,1.25581414,4371.3,4371.2,3.2078]
[1760017588175,0.59751414,4371.3,4371.2,3.8893]
[1760017588477,0.41165,4370.8,4370.7,3.2078]
[1760017588779,0.41165,4370.8,4370.7,3.8893]
[1760017588780,0.236,4370.8,4370.7,3.8893]
[1760017588967,0.18590414,4371.3,4370.7,3.8893]
[1760017588968,0.18590414,4371.3,4370.7,3.2078]
[1760017589281,0.18590414,4371.3,4371.2,4.30092]
[1760017589573,0.41154,4372.1,4371.5,0.2579]
[1760017589772,3.2078,4372.7,4372.1,0.6815]
[1760017590168,0.41149,4372.6,4372.1,0.6815]
[1760017590366,0.4115,4372.5,4372.0,3.4657]
[1760017590572,0.00192197,4372.6,4372.0,3.4657]
[1760017590870,0.41153,4372.1,4372.0,4.1472]
[1760017591074,0.41153,4372.1,4372.0,3.8893]
[1760017591368,0.41153,4372.1,4372.0,3.2078]
[1760017592175,0.41153,4372.1,4372.0,3.8893]
[1760017593272,0.41151,4372.4,4372.1,0.6815]
[1760017593479,0.00192197,4372.6,4372.0,3.2078]
[1760017593777,0.41152,4372.2,4372.1,0.6815]
[1760017594464,0.6583,4372.1,4372.0,3.2078]
[1760017595067,0.8943,4372.1,4372.0,3.2078]
[1760017595274,0.8943,4372.1,4370.8,3.2078]
[1760017595275,1.02901,4371.4,4370.8,3.2078]
[1760017595471,0.6583,4371.2,4370.8,3.2078]
[1760017595772,0.41164,4370.9,4370.8,3.2078]
[1760017595973,0.41164,4371.0,4370.9,0.6815]
[1760017596166,0.236,4371.4,4371.0,0.6815]
[1760017596372,0.41159,4371.5,4371.0,0.2579]
[1760017596589,0.4116,4371.4,4370.9,0.236]
[1760017596870,0.236,4372.1,4371.5,0.2579]
[1760017597075,0.41152,4372.3,4372.0,3.2078]
[1760017597276,0.41153,4372.2,4372.1,0.6815]
[1760017597471,0.00192197,4372.6,4372.1,0.6815]
[1760017597680,0.41151,4372.4,4372.0,3.4657]
[1760017597874,0.00192197,4372.6,4372.0,3.4657]
[1760017598072,0.41151,4372.4,4372.0,3.4657]
[1760017598273,0.41341197,4372.6,4372.1,0.6815]
[1760017598569,0.4115,4372.5,4372.1,0.6815]
[1760017598765,0.41152,4372.3,4372.2,0.6815]
[1760017598974,0.41153,4372.1,4372.0,3.2078]
[1760017599173,0.41152,4372.3,4372.0,3.2078]
[1760017599377,0.41151,4372.4,4372.0,3.2078]
[1760017599777,0.00192197,4372.6,4372.0,3.8893]
[1760017599979,0.41152,4372.3,4372.1,0.6815]
[1760017600482,0.00192197,4372.6,4372.5,0.9394]
[1760017600689,0.00192197,4372.6,4372.5,4.3832]
[1760017600868,0.00192197,4372.6,4372.5,4.1472]
[1760017601079,0.00192197,4372.6,4372.5,50.1832]
[1760017601479,0.00192197,4372.6,4372.5,45.1832]
[1760017601978,0.00192197,4372.6,4372.5,44.0078]
[1760017602281,0.66022197,4372.6,4372.5,3.2078]
[1760017602779,1.07203,4372.1,4372.0,3.2078]
[1760017603583,1.07208,4371.6,4371.5,3.2078]
[1760017604976,0.236,4372.2,4371.5,3.4728]
[1760017605172,0.41151,4372.4,4372.1,0.6365]
[1760017605374,0.41152,4372.3,4372.1,0.6365]
[1760017605576,0.00192197,4372.6,4372.0,3.2078]
[1760017605784,0.41152,4372.2,4371.6,0.236]
[1760017606076,0.6335,4372.5,4371.7,0.6365]
[1760017606279,0.236,4372.4,4371.6,0.6365]
[1760017606468,0.236,4372.4,4371.6,0.8725]
[1760017606779,0.41153,4372.2,4372.1,0.6365]
[1760017607276,0.41157,4371.7,4371.6,0.6365]
[1760017607572,3.2078,4372.7,4371.7,0.6365]
[1760017607777,0.41152,4372.2,4372.0,3.8443]
[1760017608173,0.41158,4371.6,4371.5,3.2078]
[1760017608367,1.04508,4371.6,4371.5,3.2078]
[1760017608567,0.41158,4371.6,4371.5,3.8443]
[1760017608767,0.41158,4371.6,4371.5,3.2078]
[1760017608977,0.41158,4371.6,4371.0,0.6365]
[1760017608978,0.41161,4371.3,4371.0,3.2078]
[1760017609276,1.04513,4371.1,4371.0,3.2078]
[1760017610087,0.41167,4370.6,4370.5,0.6385247]
[1760017610484,0.6335,4370.5,4370.4,3.2078]
[1760017610676,1.04524,4369.9,4369.8,3.2078]
[1760017611478,1.04524,4369.9,4369.8,0.00221324]
[1760017611679,1.0453,4369.3,4369.2,3.2078]
[1760017612578,1.04706696,4369.3,4369.2,3.21024059]
[1760017612777,1.04706696,4369.3,4369.2,1e-08]
[1760017613985,1.28306696,4369.3,4369.2,1e-08]
[1760017614180,0.41192,4368.1,4367.6,0.6365]
[1760017614385,1.04542,4368.1,4367.6,0.6365]
[1760017614779,3.2078,4369.1,4368.1,0.6365]
[1760017614984,0.41186,4368.6,4368.0,3.4728]
[1760017615186,0.41188,4368.4,4368.0,3.84715917]
[1760017615494,0.4119,4368.3,4368.0,3.21065917]
[1760017615678,0.41189,4368.4,4368.1,0.6365]
[1760017615878,0.6335,4368.2,4368.0,3.21065917]
[1760017616086,0.236,4368.3,4368.1,0.6365]
[1760017616286,0.236,4368.3,4368.0,3.21065917]
[1760017616783,0.236,4368.3,4368.1,41.4365]
[1760017617090,0.4119,4368.2,4368.1,41.4365]
[1760017617289,0.236,4368.3,4368.2,0.6365]
[1760017617490,0.6335,4368.9,4368.2,0.6365]
[1760017617491,0.41188,4368.4,4368.2,0.6365]
[1760017617791,0.41187,4368.5,4368.2,0.6365]
[1760017617986,0.00176696,4369.3,4368.3,0.236]
[1760017618182,0.00176696,4369.3,4368.9,3.2078]
[1760017618387,0.6335,4369.0,4368.2,3.2078]
[1760017618585,0.41188,4368.4,4368.2,3.2078]
[1760017618985,0.6335,4368.3,4368.2,3.2078]
[1760017619881,0.236,4368.5,4368.2,3.2078]
[1760017620086,1.02953,4369.2,4368.3,0.6365]
[1760017620087,0.236,4369.2,4368.3,0.6365]
[1760017620287,0.6335,4369.4,4368.0,0.26785917]
[1760017620288,0.41179,4369.4,4368.9,0.6365]
[1760017620488,1.02916,4370.8,4369.1,0.6365]
[1760017620489,1.28462,4370.5,4369.1,0.6365]
[1760017620688,0.236,4370.3,4369.2,0.8725]
[1760017620996,0.41172,4370.2,4369.6,0.41177]
[1760017621189,3.2078,4370.9,4369.0,0.265]
[1760017621190,0.41165,4370.9,4370.2,1.04821]
[1760017621388,0.236,4371.5,4370.8,3.2078]
[1760017621888,0.6335,4371.9,4371.3,3.2078]
[1760017622095,0.00258556,4371.9,4371.3,3.20995188]
[1760017622292,0.41159,4371.5,4371.4,0.6365]
[1760017622592,0.00258556,4371.9,4371.3,3.20995188]
[1760017622889,0.41158,4371.6,4371.4,0.6365]
[1760017623096,1.0451,4371.4,4371.3,0.00215188]
[1760017623792,1.04514,4370.9,4370.8,3.2078]
[1760017624206,0.2554,4370.5,4370.3,3.2078]
[1760017624395,1.04519,4370.4,4370.3,3.2078]
[1760017624692,0.41169,4370.5,4370.3,3.84651589]
[1760017624884,0.236,4370.9,4370.3,3.21001589]
[1760017625089,0.41166,4370.8,4370.3,3.21001589]
[1760017625292,0.41163,4371.1,4370.5,0.265]
[1760017625493,0.41164,4371.0,4370.9,0.6365]
[1760017625987,0.41164,4371.0,4370.5,0.501]
[1760017625988,0.6335,4371.4,4370.5,0.6365]
[1760017626181,0.41167,4370.7,4370.4,0.6365]
[1760017626386,0.41165,4370.9,4370.4,0.6365]
[1760017626588,0.6136,4371.5,4371.0,0.6365]
[1760017626783,0.41163,4371.1,4370.9,0.6365]
[1760017626987,0.6335,4371.2,4370.8,3.2078]
[1760017627187,0.6335,4370.9,4370.8,44.0078]
[1760017627388,0.202,4371.5,4370.8,40.8]
[1760017627695,0.8355,4371.5,4370.9,0.6365]
[1760017627900,0.41163,4371.1,4370.9,0.6365]
[1760017628098,0.6335,4370.9,4370.8,40.8]
[1760017629093,0.41169,4370.5,4370.4,0.6365]
[1760017629289,0.41169,4370.5,4370.3,3.21001589]
[1760017629494,0.6335,4370.4,4370.3,3.21001589]
[1760017629790,0.6335,4370.4,4370.3,0.00221589]
[1760017630092,3.4438,4371.1,4370.4,0.6365]
[1760017630391,1.0291,4371.0,4370.3,3.84651589]
[1760017630596,3.4438,4371.1,4370.3,3.84651589]
[1760017631189,1.04519,4370.5,4370.3,3.21001589]
[1760017631383,0.41169,4370.5,4370.4,0.6365]
[1760017631787,0.6335,4370.4,4370.3,0.00221589]
[1760017632187,6.66275,4370.4,4369.9,40.8]
[1760017632492,0.41179,4369.4,4369.3,0.6365]
[1760017633087,0.4118,4369.2,4369.1,3.2078]
[1760017633286,1.04,4369.2,4369.1,3.21074519]
[1760017633496,6.04,4369.2,4369.1,0.00294519]
[1760017635588,0.4118,4369.2,4369.1,0.65144519]
[1760017635789,0.4118,4369.2,4369.1,0.00294519]
[1760017636195,1.04,4369.2,4369.1,0.00294519]
[1760017636493,9.2478,4369.2,4369.1,5.19e-06]
[1760017636695,0.41187,4368.5,4368.4,3.2078]
[1760017636890,1.27607,4368.5,4368.4,3.2078]
[1760017637493,1.54157,4368.5,4368.4,3.2078]
[1760017637788,1.54395526,4368.5,4368.4,3.21058754]
[1760017638993,1.54395526,4368.5,4368.4,0.00278754]
[1760017639201,6.54395526,4368.5,4368.4,0.00278754]
[1760017639407,6.54395526,4368.5,4368.4,7.54e-06]
[1760017639898,6.30795526,4368.5,4368.4,7.54e-06]
[1760017640196,1.27845526,4368.5,4368.4,7.54e-06]
[1760017640604,4.73385526,4368.5,4368.4,7.54e-06]
[1760017640798,12.70583733,4368.5,4368.4,7.54e-06]
[1760017640998,12.70583733,4368.5,4367.9,4.56e-06]
[1760017640999,1.27342,4368.0,4367.9,4.56e-06]
[1760017641197,4.71722,4368.0,4367.9,4.56e-06]
[1760017641398,3.58588207,4368.0,4367.9,4.56e-06]
[1760017641597,0.6139,4368.0,4367.9,4.56e-06]
[1760017641900,0.8615,4368.0,4367.9,0.00200566]
[1760017642196,4.0693,4368.0,4367.9,0.00200566]
[1760017643200,0.41191,4368.1,4367.9,0.65630566]
[1760017643396,0.41191,4368.1,4368.0,0.6543]
[1760017643602,0.41191,4368.1,4367.9,0.00200566]
[1760017643806,0.236,4368.2,4368.0,0.6543]
[1760017643997,0.6479,4368.2,4367.9,0.00200566]
[1760017644201,0.6479,4368.2,4368.0,0.6543]
[1760017644393,0.00238526,4368.5,4368.4,0.6543]
[1760017644597,0.00238526,4368.5,4368.4,4.0981]
[1760017644902,3.2078,4369.7,4369.1,0.6543]
[1760017645099,3.2078,4370.4,4369.6,3.8621]
[1760017645304,3.2078,4370.4,4369.7,0.6543]
[1760017645803,0.41172,4370.1,4369.7,0.6543]
[1760017645999,3.21004604,4370.4,4369.7,0.6543]
[1760017646199,3.21004604,4370.4,4368.6,1.02965]
[1760017646200,0.6139,4369.9,4369.1,0.6543]
[1760017646405,3.8217,4369.9,4369.0,0.8903]
[1760017646601,0.41179,4369.4,4369.3,0.6543]
[1760017647110,0.6139,4369.3,4369.2,40.8]
[1760017647605,0.41176,4369.7,4369.6,0.6543]
[1760017647794,0.236,4370.3,4369.7,0.6543]
[1760017647994,0.00224604,4370.4,4370.2,0.6543]
[1760017648402,0.00224604,4370.4,4370.3,0.6543]
[1760017648596,0.41166,4370.8,4370.5,0.2608]
[1760017648801,3.2078,4370.9,4370.5,0.2608]
[1760017649001,0.41166,4370.8,4370.7,0.6543]
[1760017649310,0.41166,4370.8,4370.6,40.8]
[1760017649507,0.6139,4370.7,4370.6,40.8]
[1760017649705,0.61664772,4370.7,4370.6,40.8]
[1760017650003,0.61664772,4370.7,4369.7,0.6543]
[1760017650210,0.41175,4369.8,4369.7,0.6543]
[1760017650706,0.236,4370.4,4369.7,41.4543]
[1760017650902,0.41173,4370.0,4369.7,41.4543]
[1760017651205,0.41174,4369.9,4369.8,0.6543]
[1760017651596,0.41173,4370.0,4369.7,41.036]
[1760017651802,0.183,4370.2,4369.8,0.6543]
[1760017652003,0.41174,4369.9,4369.8,0.6543]
[1760017652200,0.183,4370.2,4370.1,0.6543]
[1760017652402,0.41164,4371.0,4370.6,0.6543]
[1760017652603,0.41165,4370.9,4370.6,3.8621]
[1760017653108,0.41162,4371.2,4370.6,8.8621]
[1760017653312,0.41171,4370.3,4370.1,3.2078]
[1760017653606,0.4117,4370.4,4370.2,0.6543]
[1760017653802,0.41171,4370.3,4370.2,0.6543]
[1760017653998,0.41171,4370.3,4370.1,3.2078]
[1760017654220,0.41171,4370.3,4370.1,3.8621]
[1760017654505,0.00274772,4370.7,4370.5,1.32678]
[1760017654702,0.00274772,4370.7,4370.6,4.0981]
[1760017655105,0.00274772,4370.7,4370.6,9.0981]
[1760017655500,0.00274772,4370.7,4370.6,4.0981]
[1760017656008,0.00274772,4370.7,4370.6,9.0981]
[1760017656703,0.00274772,4370.7,4370.6,49.8981]
[1760017657507,0.41157,4371.7,4371.4,0.6543]
[1760017657704,0.41153,4372.2,4371.9,0.6543]
[1760017657908,3.2078,4372.6,4371.5,0.4968]
[1760017657909,0.41149,4372.6,4372.2,0.6543]
[1760017658210,3.2078,4373.2,4372.9,0.41145]
[1760017658405,3.2078,4373.8,4373.1,0.6543]
[1760017658608,3.6214302,4373.8,4373.3,0.6543]
[1760017658811,0.41139,4373.7,4373.6,0.6543]
[1760017659309,3.2100602,4373.8,4373.6,0.6543]
[1760017659508,3.2100602,4373.8,4373.5,0.2608]
[1760017659711,3.6214402,4373.8,4373.6,0.6543]
[1760017660009,0.41139,4373.6,4373.5,0.2608]
[1760017660412,0.41139,4373.6,4373.5,1.1511]
[1760017660910,0.41139,4373.6,4373.5,0.8903]
[1760017661107,0.41142,4373.3,4373.2,44.6621]
[1760017661308,3.2100602,4373.8,4373.2,44.8981]
[1760017661510,3.2100602,4373.8,4373.4,0.6543]
[1760017661511,0.4114,4373.6,4373.4,0.6543]
[1760017661812,0.0022602,4373.8,4373.4,0.6543]
[1760017662013,0.41139,4373.6,4373.3,0.236]
[1760017662512,0.41139,4373.6,4373.2,44.41922]
[1760017662513,0.41139,4373.6,4373.5,0.629]
[1760017662820,0.4114,4373.5,4373.2,44.0078]
[1760017663315,0.41142,4373.3,4373.2,44.6368]
[1760017663617,0.0022602,4373.8,4373.2,44.8728]
[1760017663818,0.41141,4373.5,4373.3,0.629]
[1760017664015,0.41141,4373.5,4373.4,0.236]
[1760017664212,0.0022602,4373.8,4373.4,0.236]
[1760017664213,0.41139,4373.7,4373.6,0.629]
[1760017664413,0.41139,4373.7,4373.6,0.865]
[1760017664611,0.0022602,4373.8,4373.7,0.5949]
[1760017664919,0.1828,4374.5,4374.2,0.5949]
[1760017665214,3.2078,4375.3,4374.0,0.2442]
[1760017665215,0.4113,4374.6,4374.4,0.5949]
[1760017665410,0.4113,4374.6,4374.5,0.8309]
[1760017665817,0.00208257,4374.6,4374.5,1.0751]
[1760017666006,0.00208257,4374.6,4374.5,41.8751]
[1760017666205,3.2078,4375.3,4374.5,41.8751]
[1760017666407,3.2078,4375.9,4375.2,0.5949]
[1760017666611,0.41122,4375.5,4375.4,0.5949]
[1760017667014,1.02786,4376.3,4375.3,0.236]
[1760017667221,1.02787,4376.2,4375.4,41.3949]
[1760017667515,0.4112,4375.6,4375.5,0.8309]
[1760017667718,0.00270482,4376.3,4375.5,1.0751]
[1760017667915,0.41116,4376.0,4375.8,3.2078]
[1760017668216,0.41384482,4376.3,4376.1,0.5949]
[1760017668418,0.00270482,4376.3,4376.2,0.236]
[1760017668612,0.41384482,4376.3,4376.2,0.83287315]
[1760017669016,0.41384482,4376.3,4376.2,41.63287315]
[1760017669213,0.41384482,4376.3,4376.2,40.80197315]
[1760017669418,6.05934482,4376.3,4376.2,40.80197315]
[1760017670218,0.41123,4375.3,4375.1,3.2078]
[1760017670419,0.41123,4375.3,4375.2,0.5949]
[1760017670615,0.64820482,4376.3,4375.2,0.5949]
[1760017670811,0.64820482,4376.3,4375.3,41.035]
[1760017671016,0.41122,4375.5,4375.4,0.5949]
[1760017671413,0.4112,4375.7,4375.6,0.5949]
[1760017672223,0.41384482,4376.3,4376.1,0.5949]
[1760017672413,0.41115,4376.2,4376.1,0.235]
[1760017672613,0.00270482,4376.3,4375.6,3.2078]
[1760017672614,0.00270482,4376.3,4376.0,0.235]
[1760017672818,0.00270482,4376.3,4376.0,0.64616]
[1760017673018,0.41384482,4376.3,4376.1,0.5949]
[1760017673220,0.41384482,4376.3,4376.2,0.5949]
[1760017673419,0.00270482,4376.3,4376.2,0.5949]
[1760017673620,0.00270482,4376.3,4376.2,4.0377]
[1760017673815,0.1827,4377.0,4376.3,0.5949]
[1760017674019,0.4111,4376.7,4376.6,0.5949]
[1760017674825,0.41384989,4376.7,4376.6,0.5949]
[1760017675017,0.41114,4376.3,4376.2,3.8027]
[1760017675223,1.02787,4376.2,4375.6,3.8027]
[1760017675418,1.02787,4376.2,4375.7,0.8299]
[1760017675419,0.41118,4375.8,4375.7,0.8299]
[1760017675716,1.0278,4376.5,4375.6,3.2078]
[1760017675916,3.2078,4376.6,4375.6,3.2078]
[1760017675917,0.41116,4376.1,4375.7,0.8299]
[1760017676122,0.41115,4376.2,4376.0,0.2442]
[1760017676322,0.41115,4376.2,4376.1,0.8299]
[1760017676517,3.2078,4376.6,4376.1,0.8299]
[1760017676518,3.2078,4376.6,4376.1,0.235]
[1760017676723,0.00274989,4376.7,4376.1,0.235]
[1760017676724,0.00274989,4376.7,4376.6,0.5949]
[1760017677031,0.00274989,4376.7,4376.6,0.8299]
[1760017677325,0.00274989,4376.7,4376.6,41.3949]
[1760017677521,0.64824989,4376.7,4376.6,40.8]
[1760017678624,1.02778,4376.6,4376.1,0.235]
[1760017678821,0.41114,4376.3,4376.2,0.5949]
[1760017679223,0.41114,4376.3,4376.2,41.6299]
[1760017680525,0.00274989,4376.7,4376.6,0.5949]
[1760017680719,0.00274989,4376.7,4376.6,4.0377]
[1760017681228,0.00274989,4376.7,4376.6,9.0377]
[1760017681430,0.1827,4377.3,4377.2,1.00595]
[1760017681728,0.1827,4377.3,4377.2,44.6027]
[1760017681933,1.02737,4378.4,4377.3,0.5949]
[1760017682229,0.41101,4377.7,4377.6,0.5949]
[1760017682429,0.4137872,4377.7,4377.6,0.8299]
[1760017682833,0.0027772,4377.7,4377.6,0.8299]
[1760017683630,0.0027772,4377.7,4377.6,0.5949]
[1760017683826,0.0027772,4377.7,4377.2,44.0078]
[1760017683827,0.41104,4377.3,4377.2,44.6027]
[1760017684028,0.4111,4376.7,4376.6,3.2078]
[1760017684232,0.6455,4376.2,4376.1,3.2078]
[1760017684424,1.02794,4376.0,4375.5,3.2078]
[1760017684625,1.0567,4375.6,4375.5,3.2078]
[1760017684830,0.4112,4375.6,4375.3,0.235]
[1760017685028,3.2078,4376.3,4375.4,0.59766925]
[1760017685233,0.6455,4376.2,4375.5,0.8299]
[1760017685432,0.6455,4376.8,4375.7,0.5949]
[1760017685636,3.2078,4376.9,4376.2,0.5949]
[1760017685835,3.2078,4376.9,4376.4,0.5949]
[1760017686035,0.41112,4376.5,4376.4,0.5949]
[1760017686233,0.41117,4376.0,4375.8,0.5949]
[1760017686527,1.02773,4376.8,4376.0,0.5949]
[1760017686833,1.02773,4376.8,4375.9,0.235]
[1760017686834,0.41115,4376.2,4376.1,0.235]
[1760017687042,4.036,4376.9,4376.1,0.235]
[1760017687043,0.41113,4376.4,4376.1,0.235]
[1760017687334,0.41116,4376.0,4375.9,41.3949]
[1760017687535,0.41116,4376.0,4375.9,41.6299]
[1760017688032,3.3905,4376.9,4376.0,0.2442]
[1760017688237,1.02774,4376.8,4376.1,3.2078]
[1760017688431,0.41116,4376.0,4375.9,40.8]
[1760017688636,0.41116,4376.0,4375.9,41.6299]
[1760017688833,0.41116,4376.0,4375.9,41.3949]
[1760017689035,0.41116,4376.0,4375.9,41.035]
[1760017689229,0.41116,4376.0,4375.9,41.6299]
[1760017689435,0.41116,4376.1,4376.0,0.5949]
[1760017690032,3.2078,4376.3,4375.9,41.035]
[1760017690033,1.28839,4377.0,4375.9,41.21117]
[1760017690238,0.41116,4376.1,4376.0,0.8299]
[1760017690435,3.7340891,4376.8,4376.2,0.41114]
[1760017690436,3.2078,4376.8,4376.2,0.41114]
[1760017690629,0.52652661,4376.7,4376.3,0.235]
[1760017690834,3.2078,4376.8,4376.7,0.5949]
[1760017691138,0.41109,4376.9,4376.7,0.235]
[1760017691339,0.41109,4376.9,4376.8,0.5949]
[1760017692140,0.41109,4376.9,4376.8,41.3949]
[1760017692443,0.41109,4376.9,4376.4,3.2078]
[1760017692444,1.06362,4376.5,4376.4,3.2078]
[1760017692640,0.41116,4376.1,4375.9,0.6171]
[1760017692938,0.41116,4376.1,4376.0,40.8]
[1760017693133,0.41116,4376.1,4376.0,41.035]
[1760017693335,0.93658058,4376.1,4376.0,41.035]
[1760017693543,0.52542058,4376.1,4376.0,41.035]
[1760017693837,0.41112,4376.5,4376.1,0.6171]
[1760017694040,0.50591273,4376.4,4376.3,1.02824]
[1760017694253,0.50591273,4376.4,4376.3,1.26324]
[1760017694443,1.02755,4377.6,4376.3,1.26324]